Cogmind - Beta 10.2 @@@ ROGUE MODE // 2020.11.04 @ 00:46:23 Player: Grant Result: Destroyed by S-10 Pest with Light Assault Rifle Performance ------------- Evolutions (0) 0 Regions Visited (1) 200 Robots Destroyed (5) 25 Value Destroyed (152) 152 Prototype IDs (0) 0 Alien Tech Used (0) 0 Bonus (0) 0 TOTAL SCORE: 377 Bonus ------- None Cogmind --------- Core Integrity 0/250 Matter 300/300 Energy 99/100 System Corruption 0% Temperature Cool (0) Movement Core (550) Ox10 Location -10/Materials Parts ------- > --- POWER (1) -------- (None) > --- PROPULSION (2) --- (None) > --- UTILITY (2) ------ Large Storage Unit Large Storage Unit > --- WEAPON (2) ------- (None) > --- INVENTORY (16) --- Light Treads Flight Unit Small Storage Unit Small Storage Unit Small Storage Unit Small Storage Unit Medium Storage Unit Medium Storage Unit Peak State ------------ > --- POWER ------------ Light Ion Engine > --- PROPULSION ------- Aluminum Leg Aluminum Leg > --- UTILITY ---------- Small Storage Unit Medium Storage Unit > --- WEAPON ----------- EM Pulse Gun Small Laser > --- INVENTORY -------- Small Storage Unit Medium Storage Unit Large Storage Unit Large Storage Unit Small Laser [Rating: 7] Favorites ----------- Power Light Ion Engine Engine Light Ion Engine Propulsion Aluminum Leg Leg Aluminum Leg Utility Large Storage Unit Storage Large Storage Unit Weapon EM Pulse Gun Energy Gun EM Pulse Gun Build | -11 -10 ------- Run | Scr Mat Slots Evolved . | . . Power . | . . Propulsion . | . . Utility . | . . Weapon . | . . Parts Attached 10 | 5 5 Power 1 | 1 . Engine 1 | 1 . Core . | . . Reactor . | . . Propulsion 2 | 2 . Treads . | . . Leg 2 | 2 . Wheel . | . . Hover . | . . Flight . | . . Utility 4 | . 4 Device . | . . Storage 4 | . 4 Processor . | . . Hackware . | . . Protection . | . . Artifact . | . . Weapon 3 | 2 1 Energy Gun 3 | 2 1 Energy Cannon . | . . Ballistic Gun . | . . Ballistic Cannon . | . . Launcher . | . . Special Weapon . | . . Impact Weapon . | . . Slashing Weapon . | . . Piercing Weapon . | . . Special Melee Weapon . | . . Unidentified Prototypes . | . . Parts Lost 6 | . 6 Power 1 | . 1 Propulsion 2 | . 2 Utility . | . . Weapon 3 | . 3 Highest Loss Streak 4 | . 4 Average Slot Usage (%) 79 | . 79 Engine 5 | . 5 Leg 26 | . 26 Storage 23 | . 23 Energy Gun 22 | . 22 Naked Turns . | . . Heaviest Build 38 | 6 38 Greatest Support 20 | 20 20 Greatest Overweight (x) 10 | . 10 Average Overweight (x) . | . 1 Largest Inventory Capacity 16 | 4 16 Average Capacity 11 | 4 14 Most Carried 8 | 2 8 Average Carried 4 | . 5 Final Capacity 16 | 4 16 Final Carried 8 | 1 8 Class Distribution -------------------- 100% | Mutant Dominant Class ---------------- Mutant | -10/Materials Resources | -11 -10 ----------- Run | Scr Mat Matter Collected 293 | 250 43 Remotely . | . . Salvage Created 176 | 50 126 Parts 9 | . 9 Haulers Intercepted . | . . Recyclers Shooed . | . . Parts Field Recycled . | . . Retrieved Matter . | . . Parts Self-Destructed . | . . Prevented . | . . Kills | -11 -10 ------- Run | Scr Mat Combat Hostiles Destroyed 5 | 1 4 Melee 1 | . 1 Guns 4 | 1 3 Classes Destroyed 2 | 1 1 Swarmer 2 | . 2 Grunt 3 | 1 2 Best Kill Streak 2 | 1 2 Combat Bots Only 2 | 1 2 Max Kills in Single Turn 1 | 1 1 Gunslinging . | . . Exploded . | . . Melee 1 | . 1 Uniques/NPCs Destroyed . | . . Combat | -11 -10 -------- Run | Scr Mat Damage Taken 727 | 52 675 Core 252 | . 252 Absorbed by Shields . | . . Core Remaining (%) 100 | 100 . Volleys Fired 17 | 3 14 Largest 2 | 2 2 Hottest 80 | 80 80 Shots Fired 30 | 6 24 Gun 30 | 6 24 Cannon . | . . Launcher . | . . Special . | . . Kinetic . | . . Thermal 15 | 3 12 Explosive . | . . Electromagnetic 15 | 3 12 Robot Hit Streak 5 | 3 5 Robot Miss Streak 6 | 2 6 Penetration Max . | . . Secondary Targets 2 | . 2 Max Gunslinging Chain 1 | . 1 Shots Hit Robots 12 | 3 9 Core Hits 8 | 1 7 Critical Hits . | . . Critical Kills . | . . Critical Parts Destroyed . | . . Melee Attacks . | . . Impact . | . . Slashing . | . . Piercing . | . . Sneak Attacks . | . . Combat Hostiles . | . . Follow-up Attacks . | . . Damage Inflicted 200 | 53 147 Guns 173 | 53 120 Cannons . | . . Explosions . | . . Melee . | . . Ramming 27 | . 27 Kinetic . | . . Thermal 52 | 10 42 Explosive . | . . Electromagnetic 121 | 43 78 Impact . | . . Slashing . | . . Piercing . | . . Highest Corruption . | . . Average Corruption . | . . Corruption Purged . | . . Overload Shots . | . . Overflow Damage . | . . Projectiles . | . . Explosions . | . . Melee . | . . Knockbacks . | . . Impact . | . . Kinetic . | . . Secondary . | . . Self-Inflicted Damage 9 | . 9 Shots . | . . Rammed 5 | . 5 Targets Rammed 6 | . 6 Kicked 1 | . 1 Crushed . | . . Highest Temperature 113 | 78 113 Average Temperature 51 | 42 54 Received Heat Transfer 246 | 30 216 Siege Activations . | . . Robots Corrupted . | . . Combat Hostiles . | . . Parts Fried 2 | 1 1 Impact Corruptions . | . . Robots Melted . | . . Combat Hostiles . | . . Parts Melted . | . . Heat Transferred 125 | 25 100 Parts Sabotaged . | . . Parts Stolen . | . . Parts Stripped . | . . Power Chain Reactions . | . . Missiles Intercepted . | . . Alert | -11 -10 ------- Run | Scr Mat Peak Influence 188 | 20 188 Initial 13 | . 13 Average 62 | 3 81 Maximum Alert Level . | . . Low Security (%) 100 | 100 100 Level 1 . | . . Level 2 . | . . Level 3 . | . . Level 4 . | . . Level 5 . | . . High Security . | . . Max Security . | . . Squads Dispatched 3 | . 3 Investigation 1 | . 1 Extermination . | . . Reinforcement 2 | . 2 Assault . | . . Garrison . | . . Intercept . | . . Construction Impeded . | . . Haulers Reinforced . | . . Stealth | -11 -10 --------- Run | Scr Mat Distress Signals 1 | . 1 Communications Jammed . | . . Distress Signals . | . . Times Spotted 13 | 1 12 Peak Tracking Total 6 | 1 6 Tactical Retreats 1 | . 1 Traps | -11 -10 ------- Run | Scr Mat Traps Triggered . | . . Indirectly . | . . Trap Hack Attempts . | . . Triggered . | . . Disarmed . | . . Reprogrammed . | . . Reused . | . . Traps Extracted . | . . Installed . | . . Triggered . | . . Machines | -11 -10 ---------- Run | Scr Mat Machines Disabled 3 | . 3 Max in Single Turn 1 | . 1 Machines Sabotaged . | . . Garrisons Compromised . | . . Overloaded Fab Kills . | . . Fab Network Shutdowns . | . . Hacking | -11 -10 --------- Run | Scr Mat Machines Accessed 1 | . 1 Terminals 1 | . 1 Fabricators . | . . Repair Stations . | . . Recycling Units . | . . Scanalyzers . | . . Garrison Access . | . . Total Hacks 5 | . 5 Successful 3 | . 3 Failed 1 | . 1 Catastrophic . | . . Database Lockouts 1 | . 1 Manual . | . . Terminals 5 | . 5 Fabricators . | . . Repair Stations . | . . Recycling Units . | . . Scanalyzers . | . . Garrison Access . | . . Terminal Hacks 3 | . 3 Record 3 | . 3 Fabricator Hacks . | . . Repair Station Hacks . | . . Recycling Unit Hacks . | . . Scanalyzer . | . . Garrison Access Hacks . | . . Unauthorized Hacks . | . . Terminals . | . . Fabricators . | . . Repair Stations . | . . Recycling Units . | . . Scanalyzers . | . . Garrison Access . | . . Data Cores Recovered . | . . Used . | . . Hacking Detections 1 | . 1 Full Trace Events 1 | . 1 Feedback Events . | . . Feedback Blocked . | . . Robot Schematics Acquired . | . . Robots Built . | . . Matter . | . . Time . | . . Total Robot Build Rating . | . . Part Schematics Acquired . | . . Parts Built . | . . Matter . | . . Time . | . . Total Part Build Rating . | . . Parts Repaired . | . . Time . | . . Parts Recycled . | . . Recycled Matter . | . . Retrieved Matter . | . . Retrieved Components . | . . Parts Scanalyzed . | . . Part Schematics Acquired . | . . Parts Damaged . | . . Bothacking | -11 -10 ------------ Run | Scr Mat Used RIF Installer . | . . Robots Hacked . | . . Non-combat . | . . Combat . | . . Robot Hacks Applied . | . . Relay Couplers Released . | . . Robots Rewired . | . . Allies Hacked . | . . Hacks Repelled . | . . Allies | -11 -10 -------- Run | Scr Mat Total Allies . | . . Largest Group . | . . Highest-Rated Group . | . . Highest-Rated Ally . | . . Total Orders . | . . Ally Attacks . | . . Total Damage . | . . Kills . | . . Allies Corrupted . | . . Allies Melted . | . . Intel | -11 -10 ------- Run | Scr Mat Robot Analysis Total . | . . Derelict Logs Recovered . | . . Drone Launches . | . . Drone Recoveries . | . . Exploration | -11 -10 ------------- Run | Scr Mat Turns Passed 395 | 96 299 Spaces Moved 230 | 75 155 Core 22 | 19 3 Treads . | . . Legs 208 | 56 152 Wheels . | . . Hover . | . . Flight . | . . Fastest Speed 50 | 50 120 Average Speed 136 | 102 153 Slowest Speed 550 | 120 550 Overloaded Moves . | . . Propulsion Burnouts . | . . Robots Hopped . | . . Cave-ins Triggered . | . . Exploration Rate (%) 15 | 5 25 Regions Visited 1 Branch Regions . Pre-discovered Areas . | . . Known Exits Taken . | . . Unknown Exits Taken 1 | 1 . Scrap Searched . | . . Spaces Dug . | . . Terrain Destroyed . | . . Melee . | . . Projectile . | . . AOE . | . . Terrain Rammed . | . . Walls Destroyed . | . . Machines Disabled . | . . Actions | -11 -10 --------- Run | Scr Mat Total 280 | 88 192 Wait 2 | . 2 Move 229 | 74 155 Hop . | . . Pick Up 16 | 6 10 Fast Attach . | . . Attach 8 | 5 3 Detach . | . . Swap 2 | . 2 Drop . | . . Fire 17 | 3 14 Melee . | . . Ram . | . . Kick 6 | . 6 Crush . | . . Escape Stasis . | . . Rewire . | . . Trap . | . . Miscellaneous . | . . Route ------- -11/Scrapyard -10/Materials (discovered 1 exit: [*Min]) History --------- Turn | Location | Event 2 | -11/Scrapyard | Met Revision 17 68 | -11/Scrapyard | Discovered new exit (range 8) 97 | -11/Scrapyard | Entered Materials 114 | -10/Materials | Central database locked down 309 | -10/Materials | Build established: Mutant 347 | -10/Materials | Discovered new exit (range 12) 367 | -10/Materials | Core integrity fell below 50% 392 | -10/Materials | Core integrity fell below 20% 396 | -10/Materials | Destroyed by S-10 Pest with Light Assault Rifle Last Messages --------------- Acquired Lgt. Treads. K-01 Serf cleans the Terminal. K-01 Serf collects debris. K-01 Serf cleans the Neutrino Reactor. Atomic Centrifuge disabled. K-01 Serf cleans the Neutrino Reactor. S-10 Pest destroyed. Switching to secondary target: S-10 Pest. EXIT=FOUND EM Pulse Gun destroyed. Sml. Laser destroyed. Slammed into S-10 Pest. W-16 Scout sends out distress signal. Kicked S-10 Pest out of the way. S-10 Pest destroyed. Acquired Flight Unit. Aluminum Leg destroyed. Slammed into S-10 Pest. Aluminum Leg destroyed. [Achievement: First Step to Greatness] Map ----- +----------------------------------------------------+ | ?????????????????????????????????????????????????? | | ?????????????????????????????????????????????????? | | ?????????????????????????????????????????????????? | | ?????????????????????????????????????????????????? | | ?????????????????????????????????????????????????? | | ?????????????????????????????????????????????????? | | ?????????????????????????????????????????????????? | | ?????????????????????????????????????????????????? | | ?????????????????????????????????????????????????? | | ?????????????????????????????????????????????????? | | ?????????????????????????????????????????????????? | | ?????????????????????????????????????????????????? | | ?????????????? #????????????????????????????? | | ?????????????" #???????????????????????????? | | ???????????? #???????????????????????????? | | ????????????? #???????????????????????????? | | ????????????" < #???????????????????????????? | | ????????????? ????????????????????????????? | | ????????????? ????????????????????????????? | | ?????????????" ????????????????????????????? | | ?????????????# #????????????????????????????? | | # #?????????????# #????????????????????????????? | | # #?????????????# #????????????????????????????? | | # ############### #????????????????????????????? | | # ## # ###########??????????????????? | | # ## """ """ # #[ @ % #??????????????????? | | # ## """ T" # * #% g % s#??????????????????? | | / """ """ + %%k*="" """ #??????????????????? | | # ## # = # """ """ + ????????????????? | | # ########+###### # """ """ ## ???????????????? | | # #?????? ????# # #??+#??????????????? | | # #??????"" ????# # #??????????????????? | | # #?????""" #???# # #??????????????????? | | + #?????""" #???# ###########??????????????????? | | # #???? #???# #????????????????????????????? | | # ######+####### ????????????????????????????? | | # ????????????????????????????? | | + T ????????????????????????????? | | # ???????????????????????????? | | ##+### ####### #???????????????????????????? | | # #?????##########????????????????????????? | | + ####### #######??????????????????? | | # + """" # ###############????? | | ###### #### "" " # #????? | | ??#####+###+#??# "" + T #????? | | ??# """ """ #??#% % # #????? | | ??# """ """ #??# """ ]# ###############????? | | ??# """ """ #??# """" #### #####??????????????? | | ??# #??# """" #??# #??????????????? | | ??# #??# #??# #??????????????? | +----------------------------------------------------+ Best States ------------- Heat Dissipation 25 Energy Generation 10 Energy Capacity 125 Matter Stores 300 Matter Capacity 300 Sight Range 16 Terrain Scan Density 10 Evasion (%) 50 Item Schematics ----------------- None Robot Schematics ------------------ None Fabricated ------------ Nothing Alien Tech Used ----------------- None Achievements -------------- First Step to Greatness One Hack Too Far Storm Trooper Uninvited Guest Challenges ------------ None Game ------ Seed SpikedSystemSword Manual? 0 Play Time 00:09:35 Cumulative 0.2 hours Start 2020.11.04 @ 00:37:53 End 2020.11.04 @ 00:46:23 Sessions 1 Manual Loads 0 Difficulty Rogue Special Mode None Game No. 1 Rogue 1 Adventurer 0 Explorer 0 Win Type - Total 0 Types 0/0/0/0/0/0/0/0/0 Lore% 0 Gallery% 0 Achievement% 1 Wizard Run 0 Options --------- ASCII 0 Keyboard 0 Movement Numpad Keybinds 0 Fullscreen 1 Font 18/SmallcapsGlow Map View 76x50 Tactical HUD 0 Map Filters NONE Filters NONE Steam 1 RUN: 108743c5-1674-46e0-a47e-52737264d138